Cogmind - Beta 16 @@@ ROGUE MODE // 2025.11.18 @ 14:53:26 Player: MadBadger Result: Destroyed by as-54350 with Assembled Rifle Performance ------------- Evolutions (0) 0 Regions Visited (2) 400 Robots Destroyed (8) 40 Value Destroyed (165) 165 Prototype IDs (0) 0 Alien Tech Used (0) 0 Bonus (110) 110 TOTAL SCORE: 715 Bonus ------- Follower Combat Kills 110 Cogmind --------- Core Integrity 0/250 Matter 270/300 Energy 100/100 System Corruption 0% Temperature Cool (0) Movement Walking (260) Ox2 Location -10/Mines Parts ------- > --- POWER (1) -------- (None) > --- PROPULSION (2) --- Aluminum Leg Aluminum Leg > --- UTILITY (2) ------ High-capacity Storage Unit Signal Interpreter > --- WEAPON (2) ------- Light Assault Rifle Grenade Launcher > --- INVENTORY (20) --- Light Nuclear Core Aluminum Leg Wheel Compact Wheel Medium Laser Small Laser Light Assault Rifle Light Assault Rifle Peak State ------------ > --- POWER ------------ Light Ion Engine > --- PROPULSION ------- Aluminum Leg Aluminum Leg > --- UTILITY ---------- High-capacity Storage Unit Signal Interpreter > --- WEAPON ----------- Light Assault Rifle Grenade Launcher > --- INVENTORY -------- Light Nuclear Core Aluminum Leg Wheel Compact Wheel Medium Laser Small Laser Light Assault Rifle Light Assault Rifle [Rating: 8] Favorites ----------- Power Light Ion Engine Engine Light Ion Engine Propulsion Aluminum Leg Leg Aluminum Leg Utility Signal Interpreter Storage Small Storage Unit Processor Signal Interpreter Weapon Assault Rifle Energy Gun Medium Laser Ballistic Gun Assault Rifle Launcher Grenade Launcher Build | -11 -10 -10 ------- Run | Yrd Mat Min Slots Evolved . | . . . Power . | . . . Propulsion . | . . . Utility . | . . . Weapon . | . . . Parts Attached 16 | 6 9 1 Power 2 | 1 1 . Engine 2 | 1 1 . Core . | . . . Reactor . | . . . Propulsion 4 | 2 2 . Treads . | . . . Leg 4 | 2 2 . Wheel . | . . . Hover . | . . . Flight . | . . . Utility 3 | 1 2 . Device . | . . . Storage 2 | 1 1 . Processor 1 | . 1 . Hackware . | . . . Protection . | . . . Artifact . | . . . Weapon 7 | 2 4 1 Energy Gun 3 | 1 2 . Energy Cannon . | . . . Ballistic Gun 3 | 1 2 . Ballistic Cannon . | . . . Launcher 1 | . . 1 Special Weapon . | . . . Impact Weapon . | . . . Slashing Weapon . | . . . Piercing Weapon . | . . . Special Melee Weapon . | . . . Unidentified Prototypes . | . . . Parts Lost 7 | . 6 1 Power 2 | . 1 1 Propulsion 2 | . 2 . Utility . | . . . Weapon 3 | . 3 . Highest Loss Streak 6 | . 6 1 To Critical Strikes . | . . . Average Backups 6 | 2 6 7 Power . | . . . Propulsion 2 | 1 2 2 Utility . | . . . Weapon 2 | . 2 3 Tool/Special . | . . . Unused Backups 8 | . 1 7 Power 1 | . . 1 Propulsion 3 | . . 3 Utility . | . . . Weapon 4 | . 1 3 Tool/Special . | . . . Average Slot Usage (%) 96 | . 95 99 Engine 12 | . 12 13 Leg 26 | . 26 28 Storage 14 | . 14 14 Processor 13 | . 13 14 Energy Gun 5 | . 6 3 Ballistic Gun 18 | . 20 14 Launcher 3 | . . 10 Peak Build Rating 8 | 6 7 8 Average Rating 6 | 4 6 7 On Entrance 4 | . 6 7 Avg Prop Armor Cover (%) . | . . . Naked Turns . | . . . Heaviest Build 47 | 11 46 47 Greatest Support 20 | 20 20 20 Greatest Overweight (x) 2 | 2 2 2 Average Overweight (x) . | . . 2 Largest Inventory Capacity 20 | 8 20 20 Average Capacity 13 | 7 10 20 Most Carried 8 | 4 8 8 Average Carried 6 | 2 6 7 Final Capacity 20 | 8 20 20 Final Carried 8 | 4 5 8 Class Distribution -------------------- 100% | Mutant Dominant Class ---------------- Mutant | -10/Materials Mutant | -10/Mines Resources | -11 -10 -10 ----------- Run | Yrd Mat Min Matter Collected 500 | 183 214 103 Remotely . | . . . Salvage Created 241 | . 223 18 Parts 11 | . 11 . Haulers Intercepted . | . . . Recyclers Shooed . | . . . Parts Field Recycled . | . . . Retrieved Matter . | . . . Parts Self-Destructed . | . . . Prevented . | . . . Parts Restored . | . . . Kills | -11 -10 -10 ------- Run | Yrd Mat Min Combat Hostiles Destroyed 14 | . 8 6 Guns 9 | . 8 1 AOE 5 | . . 5 Classes Destroyed 3 | . 2 1 Swarmer 5 | . 5 . Grunt 3 | . 3 . Assembled 6 | . . 6 Best Kill Streak 6 | . 5 6 Combat Bots Only 6 | . 5 6 Max Kills in Single Turn 2 | . 1 2 Gunslinging . | . . . Exploded 2 | . . 2 Melee . | . . . Uniques/NPCs Destroyed . | . . . Combat | -11 -10 -10 -------- Run | Yrd Mat Min Hostile Shots Fired 106 | . 94 12 Missed 28 | . 24 4 Hits 78 | . 70 8 Melee 2 | . . 2 Projectile 76 | . 70 6 Damage Taken 839 | . 642 197 Core 259 | . 184 75 Absorbed by Shields . | . . . Core Remaining (%) 100 | 100 . . Volleys Fired 36 | . 30 6 Largest 2 | . 2 2 Hottest 90 | . 90 70 Shots Fired 58 | . 48 10 Gun 55 | . 48 7 Cannon . | . . . Launcher 3 | . . 3 Special . | . . . Kinetic 39 | . 33 6 Thermal 11 | . 10 1 Explosive 3 | . . 3 Electromagnetic 5 | . 5 . Robot Hit Streak 7 | . 6 7 Robot Miss Streak 5 | . 5 2 Penetration Max . | . . . Secondary Targets 2 | . 2 . Max Gunslinging Chain 1 | . 1 . Shots Hit Robots 33 | . 25 8 Core Hits 23 | . 12 11 Critical Kills . | . . . Critical Parts Destroyed . | . . . Critical Strikes 1 | . . 1 Burn 1 | . . 1 Melee Attacks . | . . . Impact . | . . . Slashing . | . . . Piercing . | . . . Sneak Attacks . | . . . Combat Hostiles . | . . . Follow-up Attacks . | . . . Damage Inflicted 757 | . 335 422 Guns 378 | . 335 43 Cannons . | . . . Explosions 379 | . . 379 Melee . | . . . Ramming . | . . . Kinetic 272 | . 241 31 Thermal 74 | . 62 12 Explosive 379 | . . 379 Electromagnetic 32 | . 32 . Impact . | . . . Slashing . | . . . Piercing . | . . . Highest Corruption . | . . . Average Corruption . | . . . Corruption Purged . | . . . Corruption Blocked . | . . . Overload Shots . | . . . Overflow Damage 11 | . . 11 Projectiles . | . . . Explosions 11 | . . 11 Melee . | . . . Knockbacks . | . . . Impact . | . . . Kinetic . | . . . Secondary . | . . . Self-Inflicted Damage 64 | . . 64 Shots 2 | . . 2 Rammed . | . . . Targets Rammed . | . . . Kicked . | . . . Crushed . | . . . Highest Temperature 75 | . 75 40 Average Temperature 37 | . 40 24 Received Heat Transfer 158 | . 129 29 Siege Activations . | . . . Martial Activations . | . . . Shielding Activations . | . . . Robots Disrupted . | . . . Combat Hostiles . | . . . Robots Corrupted . | . . . Combat Hostiles . | . . . Parts Fried . | . . . Impact Corruptions . | . . . Robots Melted . | . . . Combat Hostiles . | . . . Parts Melted 1 | . 1 . Heat Transferred 296 | . 185 111 Parts Sabotaged . | . . . Parts Stolen . | . . . Parts Stripped . | . . . Power Chain Reactions . | . . . Alert | -11 -10 -10 ------- Run | Yrd Mat Min Maximum Alert Level . | . . . Low Security (%) 100 | 100 100 100 Level 1 . | . . . Level 2 . | . . . Level 3 . | . . . Level 4 . | . . . Level 5 . | . . . High Security . | . . . Max Security . | . . . Peak Influence 95 | . 82 95 Initial . | . . . Average 16 | . 14 24 Influence Increases 318 | . 200 118 Destroy 0b10 Robot/C 240 | . 160 80 Destroy Leader 50 | . 40 10 Allied During Kill 5 | . . 5 Destroy Structure 23 | . . 23 Influence Decreases 305 | . 200 105 Time Decay 265 | . 170 95 Lost Part 40 | . 30 10 Squads Dispatched 2 | . 1 1 Investigation . | . . . Extermination . | . . . Reinforcement 1 | . 1 . Assault 1 | . . 1 Garrison . | . . . Intercept . | . . . Searches Triggered . | . . . Construction Impeded . | . . . Haulers Reinforced . | . . . Active Scanning Responses . | . . . Cargo Convoy Interrupts . | . . . Stealth | -11 -10 -10 --------- Run | Yrd Mat Min Distress Signals . | . . . Communications Jammed . | . . . Distress Signals . | . . . Times Spotted 32 | . 18 14 Peak Tracking Total 8 | . 7 8 Tactical Retreats . | . . . Traps | -11 -10 -10 ------- Run | Yrd Mat Min Traps Triggered 4 | . 4 . Indirectly . | . . . Trap Hack Attempts . | . . . Triggered . | . . . Disarmed . | . . . Reprogrammed . | . . . Reused . | . . . Traps Extracted . | . . . Installed . | . . . Triggered . | . . . Machines | -11 -10 -10 ---------- Run | Yrd Mat Min Machines Disabled . | . . . Max in Single Turn . | . . . Machines Repaired . | . . . Machines Dismantled . | . . . Machines Sabotaged . | . . . Overloaded Fab Kills . | . . . Hacking | -11 -10 -10 --------- Run | Yrd Mat Min Machines Accessed 1 | . 1 . Terminals 1 | . 1 . Fabricators . | . . . Repair Stations . | . . . Recycling Units . | . . . Scanalyzers . | . . . Garrison Access . | . . . Total Hacks 2 | . 2 . Successful . | . . . Failed 2 | . 2 . Catastrophic . | . . . Database Lockouts . | . . . Manual 2 | . 2 . Terminals 2 | . 2 . Fabricators . | . . . Repair Stations . | . . . Recycling Units . | . . . Scanalyzers . | . . . Garrison Access . | . . . Terminal Hacks . | . . . Fabricator Hacks . | . . . Repair Station Hacks . | . . . Recycling Unit Hacks . | . . . Scanalyzer . | . . . Garrison Access Hacks . | . . . Unauthorized Hacks . | . . . Terminals . | . . . Fabricators . | . . . Repair Stations . | . . . Recycling Units . | . . . Scanalyzers . | . . . Garrison Access . | . . . Data Cores Recovered . | . . . Used . | . . . Hacking Detections . | . . . Full Trace Events . | . . . Feedback Events . | . . . Feedback Blocked . | . . . Robot Schematics Acquired . | . . . Robots Built . | . . . Authchips . | . . . Time . | . . . Total Robot Build Rating . | . . . Part Schematics Acquired . | . . . Parts Built . | . . . Authchips . | . . . Time . | . . . Total Part Build Rating . | . . . Part Studies Acquired . | . . . Parts Repaired . | . . . Time . | . . . Parts Recycled . | . . . Recycled Matter . | . . . Retrieved Matter . | . . . Retrieved Components . | . . . Parts Scanalyzed . | . . . Part Schematics Acquired . | . . . Parts Damaged . | . . . Bothacking | -11 -10 -10 ------------ Run | Yrd Mat Min Used RIF Installer . | . . . Robots Hacked . | . . . Non-combat . | . . . Combat . | . . . Robot Hacks Applied . | . . . Relay Couplers Released . | . . . Fabnet Peak Effective % . | . . . Robots Rewired . | . . . Allies Hacked . | . . . Hacks Repelled . | . . . Allies | -11 -10 -10 -------- Run | Yrd Mat Min Total Allies 1 | . . 1 Largest Group 1 | . . 1 Highest-Rated Group 31 | . . 31 Highest-Rated Ally 31 | . . 31 Total Orders . | . . . Ally Attacks 5 | . . 5 Total Damage 104 | . . 104 Kills 4 | . . 4 Allies Corrupted . | . . . Allies Melted . | . . . Intel | -11 -10 -10 ------- Run | Yrd Mat Min Active Infowar (turns) . | . . . Robot Analysis Total . | . . . Derelict Logs Recovered . | . . . Drone Launches . | . . . Drone Recoveries . | . . . Exploration | -11 -10 -10 ------------- Run | Yrd Mat Min Turns Passed 1363 | 66 919 378 Spaces Moved 767 | 49 580 138 Core 31 | 15 16 . Treads . | . . . Legs 736 | 34 564 138 Wheels . | . . . Hover . | . . . Flight . | . . . Fastest Speed 50 | 50 120 260 Average Speed 158 | 110 139 260 Slowest Speed 260 | 190 260 260 Overloaded Moves . | . . . Propulsion Burnouts . | . . . Robots Hopped . | . . . Potential Cave-ins . | . . . Cave-ins Triggered . | . . . Exploration Rate (%) 34 | 3 56 44 Regions Visited 2 Branch Regions 1 Pre-discovered Areas . | . . . Known Exits Taken 1 | . 1 . Unknown Exits Taken 1 | 1 . . Scrap Searched . | . . . Spaces Dug . | . . . Terrain Destroyed 30 | . . 30 Melee . | . . . Projectile . | . . . AOE 30 | . . 30 Terrain Rammed . | . . . Walls Destroyed . | . . . Machines Disabled . | . . . Actions | -11 -10 -10 --------- Run | Yrd Mat Min Total 849 | 58 642 149 Wait 6 | . 6 . Move 765 | 48 579 138 Hop . | . . . Pick Up 14 | 4 7 3 Fast Attach 16 | 6 10 . Attach 6 | . 5 1 Detach 2 | . 1 1 Swap 1 | . 1 . Drop 3 | . 3 . Fire 36 | . 30 6 Melee . | . . . Ram . | . . . Kick . | . . . Crush . | . . . Escape Stasis . | . . . Rewire . | . . . Trap . | . . . Miscellaneous . | . . . Route ------- -11/Scrapyard -10/Materials (discovered 3 exits: *Mat x2 / *Min) -10/Mines (discovered 1 exit: *Mat) History --------- Turn | Location | Event 15 | -11/Scrapyard | Discovered new exit (range 15) 67 | -11/Scrapyard | Entered Materials 232 | -10/Materials | Discovered new exit (range 15) 304 | -10/Materials | Build established: Mutant 514 | -10/Materials | Discovered new exit (range 11) 530 | -10/Materials | Identified exit to Mines 622 | -10/Materials | Core integrity fell below 50% 659 | -10/Materials | Lost 6 parts (1p2n3w) 761 | -10/Materials | Discovered new exit (range 16) 779 | -10/Materials | Identified exit to Materials 986 | -10/Materials | Entered Mines 987 | -10/Mines | Met a Derelict testing a Signal Generator 1238 | -10/Mines | Discovered exit to Materials (range 9) 1328 | -10/Mines | Assembled infested the area 1333 | -10/Mines | Assisted by a Guerilla fighting off Assembled 1356 | -10/Mines | Core integrity fell below 20% 1364 | -10/Mines | Destroyed by as-54350 with Assembled Rifle Last Messages --------------- 01112_ Acquired Lgt. Nuclear Core. 01238_ EXIT=FOUND: MATERIALS 01328_ ALERT: Infestation in the mines, dispatching Demolisher response squad. 01333_ A derelict emerges from the shadows: "You need to get out of here! I've been tracking a group of Assembled to figure out where they're coming from, and they're closing on this area, come on!" 01342_ CP-39B(g) destroyed. 01343_ The unstable cave ceiling collapses. 01344_ HD-BTT(h) destroyed. 01345_ The unstable cave ceiling collapses. 01353_ as-73527 destroyed. 01355_ as-55886 destroyed. 01358_ Lgt. Ion Engine destroyed. 01358_ Destroyed Asb. Hover Unit. 01358_ as-69216 destroyed. 01358_ as-97433 destroyed. 01360_ as-99141 destroyed. 01361_ as-79988 destroyed. 01364_ U-05 Engineer builds a Wall. Map ----- +----------------------------------------------------+ | ?????????????????????????????????????????????????? | | ?????????????????????????????????????????????????? | | ?????????????????????????????????????????????????? | | ?????????????????????????????????????????????????? | | ?????????????????????????????????????????????????? | | ?????????????????????????????????????????????????? | | ?????????????????????????????????????????????????? | | ?????????????????????????????????????????????????? | | ?????????????????????????????????????????????????# | | ?????????????????????????????????????????????????? | | ????????????????????????? ??????????????????????? | | ????????????????????????? ##????????????????????? | | ????????????????????????? ## ?????????????????? | | ????????????????????????? ?????????????????? | | ????????????????????????? a??????????????????? | | ????????????????????????? ??????????????????? | | ????????????????????????? ???????????????????? | | ???????????????????###?##u ???????????????????? | | ??????????????????## ### ????????????????????? | | ??????????????????# a ????????????????????? | | ??????????????????# ##???????????????????# | | ??????????????????# #?????????????????### | | ??????????????????# % #????????????????## | | ??????????????????# #????????????????# | | ??????????????????# #???????????????## | | ?????????????????????# @ #????????????????# | | ??????????????????# #??????###???????# ## | | ?????????????????# ## #?????# ##??????# ## | | ?????????????????# ??### ###### ####???# #? | | ?????????????????# ?????# ##### #? | | ?????????????????##???????# #? | | ??????????????????????????# # #### ### ##? | | ??????????????????????????% # ##??# #?# ### | | ??????????????????????????! # #####??## ?# # | | ????????????????????###### # #??????# ### # | | ????????????????????# #??????# #?# # | | ????????????????????# #???###?# ## # | | ????????????????????# ### #?## ##??# # | | ????????????????????# #? #?## #??## | | ????????????????????# #?# # #### #???## | | ????????????????????# ##### ## #????# | | ????????????????????# < #???## | | ????????????????????# ##?### | | ????????????????????###### ###?## | | ?????????????????????????## ### #?### | | ??????????????????????????####?#### ### | | ??????????????????????????????????# ## | | ??????????????????????????????????# | | ??????????????????????????????????###### | | ???????????????????????????????????????## """ | +----------------------------------------------------+ Best States ------------- Heat Dissipation 25 Energy Generation 10 Energy Capacity 125 Matter Stores 300 Matter Capacity 300 Sight Range 16 Terrain Scan Density 10 Evasion (%) 55 Item Schematics ----------------- None Robot Schematics ------------------ None Fabricated ------------ Nothing Repaired ---------- Nothing Studied --------- None Alien Tech Used ----------------- None Achievements -------------- DATA ERROR: Steam Global Achievement% There's More Where That Came From Challenges ------------ None Game ------ Seed SuperquantumPointMinigun Manual? 0 Play Time 00:14:33 Cumulative 28.9 hours Start 2025.11.18 @ 14:39:09 End 2025.11.18 @ 14:53:26 Sessions 1 Manual Loads 0 Difficulty Rogue Special Mode None Game No. 61 Rogue 61 Adventurer 0 Explorer 0 Win Type - Total 0 Types 0/0/0/0/0/0/0/0/0/0 Lore% 12 Gallery% 16 Achievement% 9 Wizard Run 0 Options --------- Layout 0 ASCII 0 Keyboard 0 Movement Numpad Keybinds 0 Fullscreen 2 Font 24/Smallcaps Map View 76x50 Zoom Use 0% Tactical HUD 1 Map Filters NONE Filters NONE Steam 1 RUN: 28484c0a-62fc-47d3-8515-ae0649bb0fc6